[Event "Denmark Team Championship 2022"]
[Site "Denmark"]
[Date "2022.10.29"]
[Round "1.1"]
[White "Svane, Rasmus"]
[Black "Nielsen, Viktor Haarmark"]
[Result "1-0"]
[ECO "A05"]
[WhiteElo "2615"]
[BlackElo "2384"]
[Annotator "ChessBase"]
[PlyCount "55"]
[EventDate "2022.10.29"]
[EventType "team-tourn"]
[EventCountry "DEN"]
[SourceTitle "playchess.com"]
[Source "ChessBase"]
[SourceQuality "1"]
[TimeControl "40/5400+30:1800+30"]

1. Nf3 {[%emt 0:00:17]} Nf6 {[%emt 0:00:35]} 2. c4 {[%emt 0:00:29]} g6 {[%emt 0:00:33]} 3. Nc3 {[%emt 0:01:01]} Bg7 {[%emt 0:00:09]} 4. e4 {[%emt 0:09:26]} e5 {[%emt 0:02:03]} 5. Nxe5 {[%emt 0:00:19]} O-O 6. Nf3 {[%emt 0:01:50]} Re8 {[%emt 0:06:07]} 7. Bd3 Nxe4 {[%emt 0:05:46]} 8. Bxe4 {[%emt 0:02:34]} Bxc3 {[%emt 0:01:20]} 9. dxc3 {[%emt 0:00:35]} Rxe4+ {[%emt 0:00:12]} 10. Be3 {[%emt 0:14:55]} Nc6 {[%emt 0:05:17]} 11. Qd5 {[%emt 0:13:25]} Re8 {[%emt 0:03:21]} 12. O-O-O {[%emt 0:02:42]} d6 {[%emt 0:07:15]} 13. Bg5 {[%emt 0:05:38]} Qd7 {[%emt 0:02:06]} 14. Rhe1 {[%emt 0:11:04]} Re6 {[%emt 0:11:27]} 15. Nd2 {[%emt 0:16:10]} f5 {[%emt 0:01:17]} 16. Nf3 {[%emt 0:00:20]} Qf7 {[%emt 0:09:00]} 17. Bf4 {[%emt 0:05:53]} Re7 {[%emt 0:00:15]} 18. Rxe7 Nxe7 {[%emt 0:00:06]} 19. Qxf7+ {[%emt 0:01:08]} Kxf7 20. c5 {[%emt 0:02:32]} dxc5 {[%emt 0:03:02]} 21. Ng5+ {[%emt 0:00:15]} Kg7 {[%emt 0:02:43]} 22. Be5+ {[%emt 0:01:16]} Kh6 {[%emt 0:00:09]} 23. f4 {[%emt 0:01:28]} Nc6 {[%emt 0:01:57]} 24. Bf6 {[%emt 0:01:06]} a5 {[%emt 0:04:56]} 25. Rd3 {[%emt 0:00:35]} Kh5 {[%emt 0:00:07]} 26. Rh3+ {[%emt 0:00:20]} Kg4 {[%emt 0:00:06]} 27. g3 {[%emt 0:00:56]} h6 {[%emt 0:00:23]} 28. Rh4# {[%emt 0:00:05]} 1-0

[Event "Denmark Team Championship 2022"]
[Site "Denmark"]
[Date "2022.10.29"]
[Round "1.1"]
[White "Neiksans, Arturs"]
[Black "Hector, Jonny"]
[Result "1-0"]
[ECO "A06"]
[WhiteElo "2594"]
[BlackElo "2454"]
[Annotator "ChessBase"]
[PlyCount "59"]
[EventDate "2022.10.29"]
[EventType "team-tourn"]
[EventCountry "DEN"]
[SourceTitle "playchess.com"]
[Source "ChessBase"]
[SourceQuality "1"]
[TimeControl "40/5400+30:1800+30"]

1. Nf3 {[%emt 0:00:03]} d5 {[%emt 0:00:13]} 2. g3 {[%emt 0:00:06]} Nc6 {[%emt 0:00:10]} 3. d4 {[%emt 0:00:27]} Bf5 {[%emt 0:00:09]} 4. Bg2 {[%emt 0:01:10]} Nb4 {[%emt 0:00:15]} 5. Na3 {[%emt 0:00:07]} e6 {[%emt 0:00:10]} 6. c3 {[%emt 0:01:03]} Nc6 {[%emt 0:00:08]} 7. Nc2 {[%emt 0:02:18]} h5 {[%emt 0:06:42]} 8. Ne3 {[%emt 0:24:21]} Be4 {[%emt 0:01:07]} 9. Qb3 {[%emt 0:00:05]} Rb8 {[%emt 0:08:43]} 10. Ne5 {[%emt 0:00:49]} Bxg2 {[%emt 0:07:31]} 11. Nxg2 {[%emt 0:00:18]} Nge7 {[%emt 0:02:00]} 12. Nxc6 {[%emt 0:17:58]} Nxc6 {[%emt 0:00:53]} 13. Qc2 {[%emt 0:02:54]} g6 {[%emt 0:07:46]} 14. Bf4 {[%emt 0:01:33]} Bg7 {[%emt 0:03:32]} 15. e4 {[%emt 0:01:05]} g5 {[%emt 0:09:40]} 16. Bd2 {[%emt 0:01:22]} h4 {[%emt 0:06:24]} 17. gxh4 {[%emt 0:01:27]} gxh4 {[%emt 0:01:11]} 18. Rg1 {[%emt 0:06:33]} Bh6 {[%emt 0:14:52]} 19. Bxh6 {[%emt 0:05:18]} Rxh6 {[%emt 0:00:57]} 20. Ne3 {[%emt 0:00:23]} Ne7 {[%emt 0:03:15]} 21. O-O-O {[%emt 0:01:13]} c6 {[%emt 0:05:15]} 22. Ng4 {[%emt 0:04:12]} Rg6 {[%emt 0:02:26]} 23. Ne5 {[%emt 0:01:11]} Rxg1 {[%emt 0:03:17]} 24. Rxg1 {[%emt 0:00:06]} f6 {[%emt 0:08:35]} 25. Ng4 {[%emt 0:01:24]} f5 {[%emt 0:00:47]} 26. Ne5 {[%emt 0:03:15]} Qa5 {[%emt 0:02:04]} 27. exf5 {[%emt 0:02:24]} exf5 {[%emt 0:00:33]} 28. Qe2 {[%emt 0:00:59]} Kd8 {[%emt 0:01:12]} 29. Rg7 {[%emt 0:00:35]} Qc7 {[%emt 0:03:26]} 30. Qh5 {[%emt 0:00:17]} 1-0

[Event "Denmark Team Championship 2022"]
[Site "Denmark"]
[Date "2022.10.29"]
[Round "1.1"]
[White "Hillarp Persson, Tiger"]
[Black "Petersen, Tom Petri"]
[Result "1-0"]
[ECO "B06"]
[WhiteElo "2511"]
[BlackElo "2300"]
[Annotator "ChessBase"]
[PlyCount "69"]
[EventDate "2022.10.29"]
[EventType "team-tourn"]
[EventCountry "DEN"]
[SourceTitle "playchess.com"]
[Source "ChessBase"]
[SourceQuality "1"]
[TimeControl "40/5400+30:1800+30"]

1. e4 {[%emt 0:00:18]} g6 {[%emt 0:01:07]} 2. d4 {[%emt 0:00:06]} Bg7 {[%emt 0:00:04]} 3. Nc3 {[%emt 0:00:08]} a6 {[%emt 0:00:58]} 4. Be3 {[%emt 0:00:17]} d6 {[%emt 0:00:19]} 5. h4 {[%emt 0:00:08]} h5 {[%emt 0:05:06]} 6. Qd2 {[%emt 0:00:54]} Nf6 {[%emt 0:03:39]} 7. f3 {[%emt 0:00:05]} c6 {[%emt 0:11:59]} 8. a4 {[%emt 0:01:59]} d5 {[%emt 0:16:11]} 9. e5 {[%emt 0:00:18]} Ng8 {[%emt 0:00:43]} 10. a5 {[%emt 0:06:59]} Bf5 {[%emt 0:02:14]} 11. Nge2 {[%emt 0:08:29]} e6 {[%emt 0:05:30]} 12. Na4 {[%emt 0:02:11]} Nd7 {[%emt 0:01:18]} 13. b4 {[%emt 0:00:11]} b5 {[%emt 0:07:11]} 14. axb6 {[%emt 0:00:22]} Nxb6 {[%emt 0:06:40]} 15. Nxb6 {[%emt 0:00:37]} Qxb6 {[%emt 0:00:04]} 16. Nc1 {[%emt 0:00:43]} f6 {[%emt 0:05:47]} 17. exf6 {[%emt 0:02:19]} Nxf6 {[%emt 0:01:38]} 18. Nb3 {[%emt 0:00:27]} Nd7 {[%emt 0:02:08]} 19. c3 {[%emt 0:00:46]} O-O {[%emt 0:02:27]} 20. Be2 {[%emt 0:03:37]} Qd8 {[%emt 0:05:37]} 21. Bg5 {[%emt 0:10:26]} Qb6 {[%emt 0:02:05]} 22. Be3 {[%emt 0:04:22]} Qd8 {[%emt 0:00:04]} 23. Rxa6 {[%emt 0:00:33]} Rxa6 {[%emt 0:00:25]} 24. Bxa6 {[%emt 0:00:08]} e5 {[%emt 0:00:43]} 25. Be2 {[%emt 0:03:21]} e4 {[%emt 0:01:43]} 26. Bg5 {[%emt 0:09:03]} Qc7 {[%emt 0:04:05]} 27. O-O {[%emt 0:02:23]} Re8 {[%emt 0:07:13]} 28. fxe4 {[%emt 0:04:39]} dxe4 {[%emt 0:01:46]} 29. Bxh5 {[%emt 0:05:28]} e3 {[%emt 0:02:27]} 30. Bxe3 {[%emt 0:02:10]} Nf6 {[%emt 0:00:55]} 31. Rxf5 {[%emt 0:01:54]} gxh5 {[%emt 0:03:08]} 32. Nc5 {[%emt 0:05:42]} Ng4 {[%emt 0:00:17]} 33. Qa2+ {[%emt 0:00:24]} Kh7 {[%emt 0:00:13]} 34. Rxh5+ {[%emt 0:00:14]} Bh6 {[%emt 0:00:17]} 35. Qc2+ {[%emt 0:07:58]} 1-0

[Event "Denmark Team Championship 2022"]
[Site "Denmark"]
[Date "2022.10.29"]
[Round "1.1"]
[White "Ochsner, Bjorn Moller"]
[Black "Mikkelsen, Nikolaj"]
[Result "1/2-1/2"]
[ECO "C72"]
[WhiteElo "2504"]
[BlackElo "2475"]
[Annotator "ChessBase"]
[PlyCount "123"]
[EventDate "2022.10.29"]
[EventType "team-tourn"]
[EventCountry "DEN"]
[SourceTitle "playchess.com"]
[Source "ChessBase"]
[SourceQuality "1"]
[TimeControl "40/5400+30:1800+30"]

1. e4 {[%emt 0:00:04]} e5 {[%emt 0:00:18]} 2. Nf3 {[%emt 0:00:32]} Nc6 {[%emt 0:00:08]} 3. Bb5 {[%emt 0:01:55]} a6 {[%emt 0:00:13]} 4. Ba4 {[%emt 0:00:09]} d6 {[%emt 0:00:27]} 5. O-O {[%emt 0:03:06]} Bd7 {[%emt 0:00:21]} 6. c3 {[%emt 0:01:08]} g6 {[%emt 0:00:15]} 7. d4 {[%emt 0:01:07]} Bg7 {[%emt 0:00:27]} 8. h3 {[%emt 0:02:19]} Nf6 {[%emt 0:00:41]} 9. Re1 {[%emt 0:00:22]} O-O {[%emt 0:00:28]} 10. Bc2 {[%emt 0:01:10]} Nh5 {[%emt 0:01:50]} 11. Be3 {[%emt 0:06:17]} Kh8 {[%emt 0:15:31]} 12. Nbd2 {[%emt 0:16:24]} Qe8 {[%emt 0:00:59]} 13. a4 {[%emt 0:16:52]} f5 {[%emt 0:02:53]} 14. dxe5 {[%emt 0:01:52]} f4 {[%emt 0:17:05]} 15. Bd4 {[%emt 0:00:16]} dxe5 {[%emt 0:00:36]} 16. Bc5 {[%emt 0:00:18]} Rf6 {[%emt 0:02:46]} 17. a5 {[%emt 0:01:41]} g5 {[%emt 0:09:05]} 18. Nh2 {[%emt 0:09:59]} Bf8 {[%emt 0:02:32]} 19. Bxf8 {[%emt 0:05:06]} Rxf8 {[%emt 0:00:06]} 20. Ndf3 {[%emt 0:01:56]} Rd8 {[%emt 0:12:07]} 21. Qe2 {[%emt 0:01:31]} Nf6 {[%emt 0:00:50]} 22. Red1 {[%emt 0:10:26]} Qh5 {[%emt 0:04:49]} 23. Rd2 {[%emt 0:09:04]} g4 {[%emt 0:02:57]} 24. hxg4 {[%emt 0:00:25]} Nxg4 {[%emt 0:00:45]} 25. Rad1 {[%emt 0:02:25]} Be6 {[%emt 0:12:18]} 26. Rxd8 {[%emt 0:03:10]} Nxd8 {[%emt 0:00:14]} 27. Nxg4 {[%emt 0:00:17]} Qxg4 {[%emt 0:00:58]} 28. Rd2 {[%emt 0:01:27]} Nf7 {[%emt 0:03:29]} 29. Qd1 {[%emt 0:00:28]} Rg8 {[%emt 0:02:05]} 30. Ne1 {[%emt 0:00:54]} Qg6 {[%emt 0:03:26]} 31. f3 {[%emt 0:01:36]} Qg3 {[%emt 0:01:14]} 32. Kf1 {[%emt 0:00:53]} Bc4+ {[%emt 0:03:36]} 33. Bd3 {[%emt 0:00:14]} Nd6 {[%emt 0:00:01]} 34. b3 {[%emt 0:00:42]} Be6 {[%emt 0:00:07]} 35. Bc2 {[%emt 0:01:11]} Nf7 {[%emt 0:00:25]} 36. b4 {[%emt 0:00:27]} Bc4+ {[%emt 0:01:00]} 37. Bd3 {[%emt 0:00:16]} Nd6 {[%emt 0:00:02]} 38. Qe2 {[%emt 0:00:27]} Be6 {[%emt 0:00:54]} 39. c4 {[%emt 0:00:52]} Nf7 {[%emt 0:00:20]} 40. Qf2 {[%emt 0:00:33]} Qg5 {[%emt 0:01:33]} 41. Qc5 {[%emt 0:12:54]} Qd8 {[%emt 0:01:38]} 42. Rd1 {[%emt 0:01:44]} Qd6 {[%emt 0:10:53]} 43. Qxd6 {[%emt 0:00:43]} cxd6 {[%emt 0:00:07]} 44. Rc1 {[%emt 0:03:18]} Rc8 {[%emt 0:00:27]} 45. Ke2 {[%emt 0:00:38]} Kg7 {[%emt 0:04:50]} 46. Kd2 {[%emt 0:03:17]} Kf6 {[%emt 0:03:35]} 47. Rc3 {[%emt 0:02:50]} Nd8 {[%emt 0:01:04]} 48. b5 {[%emt 0:01:46]} Bf7 {[%emt 0:01:54]} 49. Bf1 {[%emt 0:04:39]} Ne6 {[%emt 0:02:20]} 50. Nd3 {[%emt 0:00:58]} Nc5 {[%emt 0:04:47]} 51. Nxc5 {[%emt 0:00:19]} Rxc5 {[%emt 0:00:02]} 52. Rb3 {[%emt 0:00:27]} Ke6 {[%emt 0:02:47]} 53. Kc3 {[%emt 0:00:48]} Be8 {[%emt 0:01:12]} 54. Kb4 {[%emt 0:00:39]} Kd7 {[%emt 0:00:31]} 55. Bd3 {[%emt 0:00:57]} Kc7 {[%emt 0:00:21]} 56. Ra3 {[%emt 0:00:51]} Bf7 {[%emt 0:01:05]} 57. Ra1 {[%emt 0:00:36]} Bg6 {[%emt 0:00:20]} 58. Rd1 {[%emt 0:00:46]} Bf7 {[%emt 0:00:28]} 59. Ra1 {[%emt 0:00:56]} Bg6 {[%emt 0:00:24]} 60. Rh1 {[%emt 0:00:09]} Kd7 {[%emt 0:00:30]} 61. Rb1 {[%emt 0:00:12]} Kc7 {[%emt 0:00:10]} 62. Ra1 {[%emt 0:01:01]} 1/2-1/2

[Event "Denmark Team Championship 2022"]
[Site "Denmark"]
[Date "2022.10.29"]
[Round "1.1"]
[White "Matthiesen, Martin"]
[Black "Hansen, Sune Berg"]
[Result "0-1"]
[ECO "D41"]
[WhiteElo "2328"]
[BlackElo "2525"]
[Annotator "ChessBase"]
[PlyCount "80"]
[EventDate "2022.10.29"]
[EventType "team-tourn"]
[EventCountry "DEN"]
[SourceTitle "playchess.com"]
[Source "ChessBase"]
[SourceQuality "1"]
[TimeControl "40/5400+30:1800+30"]

1. d4 {[%emt 0:00:03]} Nf6 {[%emt 0:00:20]} 2. c4 {[%emt 0:00:09]} e6 {[%emt 0:00:19]} 3. Nf3 {[%emt 0:01:11]} d5 {[%emt 0:00:26]} 4. Nc3 {[%emt 0:00:28]} c5 {[%emt 0:00:30]} 5. cxd5 {[%emt 0:00:49]} Nxd5 {[%emt 0:00:39]} 6. e4 {[%emt 0:00:34]} Nxc3 {[%emt 0:00:41]} 7. bxc3 {[%emt 0:00:09]} cxd4 {[%emt 0:00:08]} 8. cxd4 {[%emt 0:00:07]} Bb4+ {[%emt 0:00:05]} 9. Bd2 {[%emt 0:00:06]} Bxd2+ {[%emt 0:00:05]} 10. Qxd2 {[%emt 0:00:17]} O-O {[%emt 0:00:13]} 11. Bc4 {[%emt 0:00:54]} Nd7 {[%emt 0:00:12]} 12. O-O {[%emt 0:00:09]} b6 {[%emt 0:00:13]} 13. Rfe1 {[%emt 0:00:41]} Bb7 {[%emt 0:00:17]} 14. Rad1 {[%emt 0:05:36]} Rc8 {[%emt 0:01:24]} 15. Bd3 {[%emt 0:04:49]} h6 {[%emt 0:01:59]} 16. h3 {[%emt 0:01:50]} Re8 {[%emt 0:01:37]} 17. Qf4 {[%emt 0:09:47]} Qf6 {[%emt 0:04:39]} 18. Qg3 {[%emt 0:04:02]} a6 {[%emt 0:10:33]} 19. e5 {[%emt 0:06:55]} Qe7 {[%emt 0:05:33]} 20. Nd2 {[%emt 0:04:09]} b5 {[%emt 0:06:26]} 21. Ne4 {[%emt 0:03:08]} Bxe4 {[%emt 0:00:19]} 22. Rxe4 {[%emt 0:02:57]} Kh8 {[%emt 0:02:12]} 23. Bb1 {[%emt 0:13:23]} Rc4 {[%emt 0:04:53]} 24. Qd3 {[%emt 0:06:11]} Nf8 {[%emt 0:01:59]} 25. Bc2 {[%emt 0:07:19]} Qc7 {[%emt 0:05:19]} 26. Bb3 {[%emt 0:02:26]} Rc3 {[%emt 0:02:15]} 27. Qe2 {[%emt 0:00:16]} Ng6 {[%emt 0:04:02]} 28. Re3 {[%emt 0:10:42]} Rd8 {[%emt 0:04:45]} 29. a4 {[%emt 0:07:47]} bxa4 {[%emt 0:06:25]} 30. Bxa4 {[%emt 0:00:55]} Rc4 {[%emt 0:04:39]} 31. Bb3 {[%emt 0:04:02]} Rcxd4 {[%emt 0:01:07]} 32. Re1 {[%emt 0:00:46]} a5 {[%emt 0:00:57]} 33. Qa6 {[%emt 0:02:24]} Rd2 {[%emt 0:06:06]} 34. Ba4 {[%emt 0:01:40]} Nf4 {[%emt 0:02:23]} 35. Qc6 {[%emt 0:00:40]} Qxc6 {[%emt 0:04:51]} 36. Bxc6 {[%emt 0:00:07]} Rc8 {[%emt 0:00:15]} 37. Be4 {[%emt 0:00:22]} g5 {[%emt 0:00:59]} 38. h4 {[%emt 0:00:31]} Rc5 {[%emt 0:00:24]} 39. hxg5 {[%emt 0:00:09]} hxg5 {[%emt 0:00:05]} 40. Bf3 {[%emt 0:01:06]} Nd3 {[%emt 0:01:13]} 0-1

[Event "Denmark Team Championship 2022"]
[Site "Denmark"]
[Date "2022.10.29"]
[Round "1.2"]
[White "Schandorff, Lars"]
[Black "Ramsdal, Jens Albert"]
[Result "1-0"]
[ECO "A46"]
[WhiteElo "2476"]
[BlackElo "2318"]
[Annotator "ChessBase"]
[PlyCount "95"]
[EventDate "2022.10.29"]
[EventType "team-tourn"]
[EventCountry "DEN"]
[SourceTitle "playchess.com"]
[Source "ChessBase"]
[SourceQuality "1"]
[TimeControl "40/5400+30:1800+30"]

1. d4 {[%emt 0:00:07]} Nf6 {[%emt 0:00:11]} 2. Nf3 {[%emt 0:00:21]} e6 {[%emt 0:00:56]} 3. Bf4 {[%emt 0:00:26]} b6 {[%emt 0:05:49]} 4. e3 {[%emt 0:01:26]} Bb7 {[%emt 0:00:21]} 5. Nbd2 {[%emt 0:03:23]} Be7 {[%emt 0:04:52]} 6. h3 {[%emt 0:00:16]} O-O {[%emt 0:00:29]} 7. Bd3 {[%emt 0:01:53]} d5 {[%emt 0:02:31]} 8. c3 {[%emt 0:03:13]} c5 {[%emt 0:04:40]} 9. O-O {[%emt 0:04:49]} Ne4 {[%emt 0:02:39]} 10. Qc2 {[%emt 0:03:15]} f5 {[%emt 0:05:37]} 11. Bh2 {[%emt 0:07:18]} Nd7 {[%emt 0:06:07]} 12. Ne5 {[%emt 0:03:49]} Nxe5 {[%emt 0:00:18]} 13. Bxe5 {[%emt 0:00:05]} Nxd2 {[%emt 0:12:58]} 14. Qxd2 {[%emt 0:00:05]} a5 {[%emt 0:07:18]} 15. Qe2 {[%emt 0:06:23]} Qc8 {[%emt 0:03:48]} 16. Rac1 {[%emt 0:04:30]} c4 {[%emt 0:05:53]} 17. Bc2 {[%emt 0:03:44]} Bc6 {[%emt 0:00:07]} 18. f3 {[%emt 0:01:54]} Bf6 {[%emt 0:02:19]} 19. Bxf6 {[%emt 0:05:57]} Rxf6 {[%emt 0:01:06]} 20. e4 {[%emt 0:00:15]} Qd7 {[%emt 0:06:11]} 21. exf5 {[%emt 0:04:51]} exf5 {[%emt 0:00:08]} 22. Rce1 {[%emt 0:00:29]} g6 {[%emt 0:02:26]} 23. Qd2 {[%emt 0:03:25]} Re8 {[%emt 0:05:54]} 24. Re5 {[%emt 0:06:02]} Rfe6 {[%emt 0:01:14]} 25. f4 {[%emt 0:11:14]} b5 {[%emt 0:00:09]} 26. Kh2 {[%emt 0:03:31]} Rb8 {[%emt 0:03:11]} 27. a3 {[%emt 0:04:05]} b4 {[%emt 0:02:05]} 28. axb4 {[%emt 0:00:35]} axb4 {[%emt 0:00:02]} 29. Ra1 {[%emt 0:04:18]} bxc3 {[%emt 0:00:41]} 30. bxc3 {[%emt 0:00:06]} Rxe5 {[%emt 0:04:02]} 31. fxe5 {[%emt 0:00:21]} Qe7 {[%emt 0:00:39]} 32. Qf4 {[%emt 0:04:27]} Ra8 {[%emt 0:05:56]} 33. Rxa8+ {[%emt 0:04:43]} Bxa8 {[%emt 0:00:01]} 34. e6 {[%emt 0:00:57]} Bb7 {[%emt 0:00:24]} 35. Qb8+ {[%emt 0:00:42]} Kg7 {[%emt 0:00:35]} 36. Ba4 {[%emt 0:01:12]} h5 {[%emt 0:04:32]} 37. Bd7 {[%emt 0:01:06]} Ba6 {[%emt 0:01:21]} 38. Qe5+ {[%emt 0:00:35]} Kh7 {[%emt 0:00:24]} 39. Qxd5 {[%emt 0:00:13]} Qh4 {[%emt 0:00:30]} 40. Qf3 {[%emt 0:02:48]} Kg7 {[%emt 0:01:20]} 41. Qe3 {[%emt 0:18:17]} f4 {[%emt 0:12:30]} 42. Qe5+ {[%emt 0:00:40]} Kh7 {[%emt 0:00:01]} 43. Bc6 {[%emt 0:01:03]} Bc8 {[%emt 0:02:49]} 44. e7 {[%emt 0:04:51]} Bxh3 {[%emt 0:00:11]} 45. Kg1 {[%emt 0:01:05]} f3 {[%emt 0:02:15]} 46. e8=Q {[%emt 0:02:06]} f2+ {[%emt 0:00:19]} 47. Kf1 {[%emt 0:00:08]} Bf5 {[%emt 0:00:11]} 48. Q8h8# {[%emt 0:00:10]} 1-0

[Event "Denmark Team Championship 2022"]
[Site "Denmark"]
[Date "2022.10.29"]
[Round "1.2"]
[White "Jepson, Christian"]
[Black "Thybo, Jesper Sondergaard"]
[Result "0-1"]
[ECO "A04"]
[WhiteElo "2401"]
[BlackElo "2498"]
[Annotator "ChessBase"]
[PlyCount "106"]
[EventDate "2022.10.29"]
[EventType "team-tourn"]
[EventCountry "DEN"]
[SourceTitle "playchess.com"]
[Source "ChessBase"]
[SourceQuality "1"]
[TimeControl "40/5400+30:1800+30"]

1. Nf3 {[%emt 0:00:03]} c5 {[%emt 0:00:11]} 2. c4 {[%emt 0:00:12]} Nc6 {[%emt 0:01:43]} 3. b3 {[%emt 0:00:14]} e5 {[%emt 0:00:16]} 4. Bb2 {[%emt 0:00:05]} d6 {[%emt 0:00:04]} 5. g3 {[%emt 0:01:13]} g5 {[%emt 0:02:07]} 6. d3 {[%emt 0:03:31]} Bg7 {[%emt 0:03:24]} 7. Nc3 {[%emt 0:02:12]} h6 {[%emt 0:01:36]} 8. Bg2 {[%emt 0:04:24]} Nge7 {[%emt 0:01:07]} 9. a3 {[%emt 0:15:27]} Be6 {[%emt 0:11:00]} 10. Nd2 {[%emt 0:11:03]} f5 {[%emt 0:13:40]} 11. b4 {[%emt 0:04:14]} cxb4 {[%emt 0:15:09]} 12. axb4 {[%emt 0:00:59]} Nxb4 {[%emt 0:02:18]} 13. Ba3 {[%emt 0:29:20]} Nbc6 {[%emt 0:02:55]} 14. Nb5 {[%emt 0:00:46]} Nc8 {[%emt 0:03:33]} 15. e4 {[%emt 0:12:11]} O-O {[%emt 0:15:45]} 16. exf5 {[%emt 0:02:41]} Bxf5 {[%emt 0:00:07]} 17. Ne4 {[%emt 0:04:22]} Qa5+ {[%emt 0:00:34]} 18. Qd2 {[%emt 0:00:53]} Qxd2+ {[%emt 0:02:05]} 19. Kxd2 {[%emt 0:00:03]} Bg6 {[%emt 0:08:35]} 20. Rhb1 {[%emt 0:02:30]} Rf7 {[%emt 0:01:41]} 21. Bxd6 {[%emt 0:01:59]} Nd4 {[%emt 0:03:37]} 22. Bc5 {[%emt 0:01:20]} b6 {[%emt 0:06:44]} 23. Bxd4 {[%emt 0:01:23]} exd4 {[%emt 0:00:01]} 24. Rf1 {[%emt 0:00:41]} Rb8 {[%emt 0:00:41]} 25. Ned6 {[%emt 0:00:25]} Nxd6 {[%emt 0:00:07]} 26. Nxd6 {[%emt 0:00:02]} Rd7 {[%emt 0:01:00]} 27. Bd5+ {[%emt 0:00:21]} Kh7 {[%emt 0:00:28]} 28. Nb5 {[%emt 0:00:07]} a5 {[%emt 0:00:26]} 29. f4 {[%emt 0:00:20]} gxf4 {[%emt 0:02:16]} 30. gxf4 {[%emt 0:00:01]} Bf5 {[%emt 0:01:05]} 31. Rae1 {[%emt 0:00:17]} Rf8 {[%emt 0:00:45]} 32. Be6 {[%emt 0:00:25]} Bxe6 {[%emt 0:00:40]} 33. Rxe6 {[%emt 0:00:02]} Rf6 {[%emt 0:00:38]} 34. f5 {[%emt 0:01:04]} Kg8 {[%emt 0:00:31]} 35. Rxf6 {[%emt 0:01:49]} Bxf6 {[%emt 0:00:01]} 36. Re1 {[%emt 0:00:06]} Bg5+ {[%emt 0:00:15]} 37. Kc2 {[%emt 0:00:28]} Be3 {[%emt 0:00:10]} 38. Rf1 {[%emt 0:00:50]} Kf7 {[%emt 0:00:26]} 39. f6 {[%emt 0:00:30]} Ke6 {[%emt 0:01:28]} 40. Kb3 {[%emt 0:00:21]} Rf7 {[%emt 0:00:36]} 41. Ka4 {[%emt 0:01:47]} h5 {[%emt 0:03:37]} 42. Rf3 {[%emt 0:09:34]} Rxf6 {[%emt 0:07:08]} 43. Nc7+ {[%emt 0:02:44]} Ke5 {[%emt 0:04:17]} 44. Rxf6 {[%emt 0:12:15]} Kxf6 {[%emt 0:00:02]} 45. Kb5 {[%emt 0:03:49]} Bf4 {[%emt 0:05:10]} 46. Nd5+ {[%emt 0:00:09]} Kg5 {[%emt 0:00:12]} 47. h3 {[%emt 0:01:02]} Bg3 {[%emt 0:03:54]} 48. Nxb6 {[%emt 0:03:29]} Kh4 {[%emt 0:00:15]} 49. Kxa5 {[%emt 0:00:40]} Kxh3 {[%emt 0:00:11]} 50. Nd5 {[%emt 0:00:05]} h4 {[%emt 0:01:20]} 51. Nf6 {[%emt 0:00:25]} Kg2 {[%emt 0:01:03]} 52. c5 {[%emt 0:00:48]} h3 {[%emt 0:00:30]} 53. Ng4 {[%emt 0:00:42]} Kf3 {[%emt 0:00:14]} 0-1

[Event "Denmark Team Championship 2022"]
[Site "Denmark"]
[Date "2022.10.29"]
[Round "1.2"]
[White "Haubro, Martin"]
[Black "Vinter-Schou, Uffe"]
[Result "1-0"]
[ECO "B42"]
[WhiteElo "2398"]
[BlackElo "2382"]
[Annotator "ChessBase"]
[PlyCount "107"]
[EventDate "2022.10.29"]
[EventType "team-tourn"]
[EventCountry "DEN"]
[SourceTitle "playchess.com"]
[Source "ChessBase"]
[SourceQuality "1"]
[TimeControl "40/5400+30:1800+30"]

1. e4 {[%emt 0:00:03]} c5 {[%emt 0:00:14]} 2. Nf3 {[%emt 0:00:05]} e6 {[%emt 0:00:10]} 3. d4 {[%emt 0:00:06]} cxd4 {[%emt 0:00:05]} 4. Nxd4 {[%emt 0:00:03]} a6 {[%emt 0:00:10]} 5. Bd3 {[%emt 0:00:37]} g6 {[%emt 0:00:11]} 6. Nc3 {[%emt 0:10:57]} Bg7 {[%emt 0:00:07]} 7. Be3 {[%emt 0:00:08]} d6 {[%emt 0:00:15]} 8. Qd2 {[%emt 0:14:30]} Nf6 {[%emt 0:01:04]} 9. f3 {[%emt 0:00:12]} Nc6 {[%emt 0:15:43]} 10. O-O-O {[%emt 0:06:11]} Qc7 {[%emt 0:23:36]} 11. Be2 {[%emt 0:26:35]} d5 {[%emt 0:12:04]} 12. exd5 {[%emt 0:05:59]} Nxd5 {[%emt 0:01:19]} 13. Nxd5 {[%emt 0:00:06]} exd5 {[%emt 0:00:04]} 14. Nxc6 {[%emt 0:01:27]} bxc6 {[%emt 0:00:14]} 15. Bd4 {[%emt 0:00:19]} O-O {[%emt 0:01:54]} 16. Bxg7 {[%emt 0:00:16]} Kxg7 {[%emt 0:00:02]} 17. Qc3+ {[%emt 0:05:26]} Kg8 {[%emt 0:08:18]} 18. Rxd5 {[%emt 0:00:10]} Re8 {[%emt 0:00:19]} 19. Rd2 {[%emt 0:00:51]} Bf5 {[%emt 0:02:39]} 20. g3 {[%emt 0:06:18]} Qb6 {[%emt 0:06:49]} 21. Rhd1 {[%emt 0:02:21]} h5 {[%emt 0:06:00]} 22. Bc4 {[%emt 0:01:06]} Be6 {[%emt 0:05:20]} 23. b3 {[%emt 0:03:07]} Qc5 {[%emt 0:00:33]} 24. Qd4 {[%emt 0:01:38]} Qa3+ {[%emt 0:03:18]} 25. Kb1 {[%emt 0:00:50]} a5 {[%emt 0:01:02]} 26. Bxe6 {[%emt 0:00:05]} Rxe6 {[%emt 0:00:04]} 27. Qc3 {[%emt 0:03:13]} Rae8 {[%emt 0:01:39]} 28. Rd8 {[%emt 0:00:44]} c5 {[%emt 0:06:22]} 29. Rxe8+ {[%emt 0:02:54]} Rxe8 {[%emt 0:00:02]} 30. Rd5 {[%emt 0:01:33]} Rc8 {[%emt 0:00:06]} 31. Rd7 {[%emt 0:01:00]} c4 {[%emt 0:02:05]} 32. Qf6 {[%emt 0:01:57]} Qf8 {[%emt 0:00:06]} 33. Qe7 {[%emt 0:02:09]} cxb3 {[%emt 0:02:48]} 34. Qxf8+ {[%emt 0:00:07]} Kxf8 {[%emt 0:00:02]} 35. axb3 {[%emt 0:00:07]} Rc3 {[%emt 0:01:30]} 36. f4 {[%emt 0:00:36]} h4 {[%emt 0:00:37]} 37. Rd3 {[%emt 0:02:06]} Rc5 {[%emt 0:01:02]} 38. Kb2 {[%emt 0:01:19]} Ke7 {[%emt 0:00:27]} 39. Rd4 {[%emt 0:00:38]} Ke6 {[%emt 0:00:26]} 40. gxh4 {[%emt 0:01:09]} Rh5 {[%emt 0:01:02]} 41. Ka3 {[%emt 0:31:24]} Kf5 {[%emt 0:07:42]} 42. c4 {[%emt 0:00:00]} Rxh4 {[%emt 0:09:04]} 43. Ka4 {[%emt 0:00:00]} g5 {[%emt 0:02:27]} 44. Rd5+ {[%emt 0:00:00]} Kxf4 {[%emt 0:00:20]} 45. Rd4+ {[%emt 0:01:11]} Ke5 {[%emt 0:00:16]} 46. Rxh4 {[%emt 0:00:59]} gxh4 {[%emt 0:00:02]} 47. Kxa5 {[%emt 0:00:08]} f5 {[%emt 0:11:31]} 48. Kb4 {[%emt 0:00:08]} Kd4 {[%emt 0:00:36]} 49. c5 {[%emt 0:00:04]} Kd5 {[%emt 0:00:05]} 50. Kb5 {[%emt 0:00:31]} f4 {[%emt 0:00:04]} 51. c6 {[%emt 0:00:13]} Kd6 {[%emt 0:00:39]} 52. Kc4 {[%emt 0:02:10]} Kxc6 {[%emt 0:03:19]} 53. h3 {[%emt 0:00:09]} f3 {[%emt 0:00:24]} 54. Kd3 {[%emt 0:00:04]} 1-0